Cogmind - Beta 15 @@@ ROGUE MODE // 2025.05.30 @ 01:19:09 Player: Cracklepappy Result: Self-destructed Performance ------------- Evolutions (3) 1500 Regions Visited (12) 2400 Robots Destroyed (252) 1260 Value Destroyed (7380) 7380 Prototype IDs (52) 1040 Alien Tech Used (0) 0 Bonus (4576) 4576 TOTAL SCORE: 18156 Bonus ------- Triggered High Security 500 High Alert Combat Kills 1758 Follower Combat Kills 1769 Entered Garrisons 200 Used RIF Installer 1000 Aligned with FarCom 300 Friendly Fire -951 Cogmind --------- Core Integrity 247/700 Matter 81/300 Energy 100/100 System Corruption 14% Temperature Cool (0) Movement Treading (240) Ox1 Location -7/Storage Parts ------- > --- POWER (1) -------- (None) > --- PROPULSION (3) --- Medium Treads Medium Treads Medium Treads > --- UTILITY (6) ------ Coolant Injector Huge Storage Unit Core Analyzer > --- WEAPON (3) ------- Cooled Particle Cannon Cooled Particle Cannon Cooled Particle Cannon > --- INVENTORY (25) --- Cold Fusion Reactor EM Disruption Field Army-in-a-Box (30/30) PSU Rigger Advanced Beam Rifle Cooled Particle Cannon Cooled Particle Cannon Cooled Plasma Cannon YOLO Cannon Precision Assault Rifle Precision Assault Rifle Precision Assault Rifle Hardcell Cannon Plasma Cutter Chainsword Peak State ------------ > --- POWER ------------ Antimatter Reactor > --- PROPULSION ------- Medium Treads Heavy Treads > --- UTILITY ---------- Improved Cooling System Huge Storage Unit Transmission Jammer EM Disruption Field Improved Shield Generator Advanced Hacking Suite > --- WEAPON ----------- Precision Assault Rifle Precision Assault Rifle Precision Assault Rifle > --- INVENTORY -------- Antimatter Reactor Medium Treads Medium Treads Medium Treads Medium Treads Coolant Injector Improved Signal Interpreter High-powered Tractor Beam Army-in-a-Box PSU Rigger Advanced Plasma Cannon YOLO Cannon Precision Assault Rifle Precision Assault Rifle Precision Assault Rifle Hardcell Cannon Heavy Missile Launcher Remote Datajack Plasma Cutter [Rating: 76] Favorites ----------- Power Reinforced Ion Engine Engine Reinforced Ion Engine Reactor Antimatter Reactor Propulsion Light Treads Treads Light Treads Wheel Wheel Flight Unit Improved Flight Unit Utility Huge Storage Unit Device Transmission Jammer Storage Huge Storage Unit Processor Core Analyzer Hackware Hacking Suite Protection Medium Armor Plating Weapon Heavy Assault Rifle Energy Gun Gatling Laser Energy Cannon Particle Cannon Ballistic Gun Heavy Assault Rifle Ballistic Cannon Light Cannon Launcher Missile Launcher Special Weapon Remote Datajack Impact Weapon Heavy Flail Special Melee Weapon Datajack Build | -11 -10 -10 -9 -9 -9 -8 -8 -8 -7 -7 -7 -7 ------- Run | Yrd Mat Min Mat Min Exi Min Mat Gar Fac Was Fac Sto Slots Evolved 6 | . . . 2 . . . 2 . 2 . . . Power . | . . . . . . . . . . . . . Propulsion 1 | . . . 1 . . . . . . . . . Utility 4 | . . . . . . . 2 . 2 . . . Weapon 1 | . . . 1 . . . . . . . . . Parts Attached 168 | 8 13 3 35 3 1 2 28 13 20 8 12 22 Power 15 | 1 2 1 4 . . . 3 . 2 1 . 1 Engine 13 | 1 2 1 4 . . . 3 . 2 . . . Core . | . . . . . . . . . . . . . Reactor 2 | . . . . . . . . . . 1 . 1 Propulsion 40 | 2 3 . 13 3 . 1 5 4 . 3 2 4 Treads 38 | 2 2 . 12 3 . 1 5 4 . 3 2 4 Leg . | . . . . . . . . . . . . . Wheel 1 | . 1 . . . . . . . . . . . Hover . | . . . . . . . . . . . . . Flight 1 | . . . 1 . . . . . . . . . Utility 56 | 2 2 2 7 . . 1 9 3 11 3 8 8 Device 24 | 1 1 1 3 . . . 4 2 4 2 1 5 Storage 5 | 1 1 . 1 . . . 1 . . . 1 . Processor 2 | . . . . . . . . . . . . 2 Hackware 14 | . . 1 1 . . . 1 1 5 . 5 . Protection 11 | . . . 2 . . 1 3 . 2 1 1 1 Artifact . | . . . . . . . . . . . . . Weapon 57 | 3 6 . 11 . 1 . 11 6 7 1 2 9 Energy Gun 17 | 3 . . 1 . . . 8 4 . . . 1 Energy Cannon 11 | . . . 3 . . . . . 1 . 1 6 Ballistic Gun 15 | . 3 . 4 . . . 3 . 4 1 . . Ballistic Cannon 4 | . 2 . 1 . . . . . . . 1 . Launcher 4 | . . . 2 . . . . 1 . . . 1 Special Weapon 4 | . 1 . . . . . . . 2 . . 1 Impact Weapon 1 | . . . . . . . . 1 . . . . Slashing Weapon . | . . . . . . . . . . . . . Piercing Weapon . | . . . . . . . . . . . . . Special Melee Weapon 1 | . . . . . 1 . . . . . . . Unidentified Prototypes 12 | . . . 3 . . . 6 . 1 . . 2 Parts Lost 18 | . 1 . . . . . 1 1 3 . . 12 Power 3 | . 1 . . . . . . . . . . 2 Propulsion 3 | . . . . . . . 1 . . . . 2 Utility 11 | . . . . . . . . 1 3 . . 7 Weapon 1 | . . . . . . . . . . . . 1 Highest Loss Streak 7 | . 1 . . . . . 1 1 1 . . 7 To Critical Strikes . | . . . . . . . . . . . . . Average Backups 18 | 3 11 14 18 25 23 18 17 17 18 18 18 18 Power 1 | . . 1 1 2 1 1 1 1 1 . 1 . Propulsion 2 | 2 3 2 4 4 3 3 2 2 . . 1 3 Utility 7 | . 4 7 6 10 10 7 6 7 10 8 7 4 Weapon 5 | . 2 3 4 5 6 4 7 5 5 7 7 8 Tool/Special . | . . . . . . . . . . . . . Unused Backups 61 | . 9 1 8 3 8 1 11 2 3 1 1 13 Power 4 | . . . 1 . 1 . . . 1 . . 1 Propulsion 10 | . 5 . . . . . 3 1 . . . 1 Utility 23 | . 2 1 5 2 5 . 1 1 2 . 1 3 Weapon 24 | . 2 . 2 1 2 1 7 . . 1 . 8 Tool/Special . | . . . . . . . . . . . . . Average Slot Usage (%) 97 | . 100 100 99 100 100 100 96 95 97 93 89 86 Engine 8 | . 14 14 11 11 11 11 9 9 7 1 . . Reactor 1 | . . . . . . . . . . 5 7 7 Treads 26 | . 27 28 32 33 33 33 27 27 23 16 14 14 Device 11 | . 14 12 5 . . . 12 15 22 23 18 27 Storage 9 | . 14 14 11 11 11 11 9 9 7 7 7 7 Hackware 3 | . . 1 3 . . . 1 4 8 7 13 2 Protection 5 | . . . 2 11 11 11 10 2 3 7 3 . Energy Gun 7 | . 3 . . . . . 20 24 16 . . . Energy Cannon 1 | . . . 5 . . . . . . . . 12 Ballistic Gun 13 | . 7 . 18 33 23 33 6 . 3 22 19 9 Ballistic Cannon 4 | . 14 28 7 . . . . . . . . . Peak Build Rating 76 | 9 10 12 22 21 25 27 49 49 54 71 76 76 Average Rating 34 | 5 9 10 18 20 20 26 40 44 48 68 70 71 On Entrance 31 | . 9 10 12 21 20 25 27 49 41 52 71 76 Naked Turns . | . . . . . . . . . . . . . Heaviest Build 126 | 12 30 30 106 106 106 107 117 119 113 122 126 123 Greatest Support 98 | 40 40 40 66 66 63 63 84 84 68 98 98 98 Greatest Overweight (x) 2 | . 2 . 1 1 1 1 1 1 1 1 1 1 Average Overweight (x) . | . . . . 1 1 1 1 1 1 1 1 1 Largest Inventory Capacity 25 | 8 15 15 25 25 25 25 25 25 25 25 25 25 Average Capacity 22 | 7 12 15 19 25 25 25 25 25 25 25 25 25 Most Carried 25 | 8 15 15 25 25 25 25 25 25 25 25 25 25 Average Carried 22 | 3 11 14 18 24 24 24 24 24 24 24 24 24 Final Capacity 25 | 8 15 15 25 25 25 25 25 25 25 25 25 25 Final Carried 25 | 8 15 15 25 25 25 25 25 25 25 25 25 21 Class Distribution -------------------- 19% | Mutant 18% | Tank 16% | Skirmisher 12% | Gunner 9% | Scavenger-Skirmisher 7% | Scavenger-Mutant 6% | Commander-Tank 5% | Scavenger-Tank 3% | Scavenger-Gunner Dominant Class ---------------- Mutant | -10/Materials Mutant | -10/Mines Gunner | -9/Materials Tank | -9/Mines Scavenger-Mutant | -9/Exiles Scavenger-Skirmisher | -8/Mines Skirmisher | -8/Materials Skirmisher | -8/Garrison Gunner | -7/Factory Tank | -7/Waste Commander-Tank | -7/Factory Commander-Tank | -7/Storage Resources | -11 -10 -10 -9 -9 -9 -8 -8 -8 -7 -7 -7 -7 ----------- Run | Yrd Mat Min Mat Min Exi Min Mat Gar Fac Was Fac Sto Matter Collected 5418 | 280 703 104 1020 128 . 68 803 411 363 189 439 910 Remotely 840 | . . . . . . . . . . . . 840 Salvage Created 8336 | 142 752 21 1837 151 . 22 1687 1164 651 237 120 1552 Parts 476 | 7 44 3 134 9 . 5 98 57 34 11 9 65 Haulers Intercepted 15 | . 2 . 6 . . . 5 . . . . 2 Recyclers Shooed 7 | . 1 1 1 . . . 3 . . . 1 . Parts Field Recycled . | . . . . . . . . . . . . . Retrieved Matter . | . . . . . . . . . . . . . Parts Self-Destructed . | . . . . . . . . . . . . . Prevented . | . . . . . . . . . . . . . Kills | -11 -10 -10 -9 -9 -9 -8 -8 -8 -7 -7 -7 -7 ------- Run | Yrd Mat Min Mat Min Exi Min Mat Gar Fac Was Fac Sto Combat Hostiles Destroyed 175 | . 19 6 38 5 . 2 30 29 8 . 4 34 Guns 85 | . 7 . 6 5 . 2 25 18 7 . 4 11 Cannons 45 | . 12 6 23 . . . . . 1 . . 3 AOE 43 | . . . 9 . . . 5 11 . . . 18 Classes Destroyed 19 | 2 6 2 5 . . . . 1 1 1 . 1 Worker 17 | . . 2 8 . . . 2 . . . 2 3 Builder 11 | . 1 . 3 . . . . . 7 . . . Tunneler 5 | 2 . . 1 . . 1 . . 1 . . . Hauler 15 | . 2 . 6 . . . 5 . . . . 2 Recycler 8 | 1 2 . 1 . . . 3 . 1 . . . Mechanic 2 | . . . 1 . . . . . . . . 1 Operator 4 | . 2 . 1 . . . . . . . . 1 Watcher 15 | . 3 . 5 . . . 3 . 2 . . 2 Swarmer 44 | . 9 . 7 5 . 2 12 6 . . 3 . Grunt 79 | . 10 . 17 . . . 10 16 3 . . 23 Brawler 6 | . . . 2 . . . 1 1 . . . 2 Duelist 3 | . . . 1 . . . . . 1 . . 1 Protector 4 | . . . 1 . . . . . . . . 3 Sentry 23 | . . . 10 . . . 7 5 . . . 1 Specialist 1 | . . . . . . . . . . . . 1 Hunter 4 | . . . . . . . . . 1 . . 3 Programmer 6 | . . . . . . . . 1 3 . 1 1 Assembled 6 | . . 6 . . . . . . . . . . Surgeon 1 | . . . . . . . . . . . . 1 Wasp 1 | . . . . . . . . . . 1 . . Thug 1 | . . . . . . . . . . . . 1 Martyr 2 | . . . . . . . . . . 2 . . Best Kill Streak 9 | 2 4 3 9 3 . 2 4 7 3 . 1 9 Combat Bots Only 7 | . 4 3 7 3 . 2 4 7 2 . 1 7 Max Kills in Single Turn 4 | 2 2 2 3 1 . 2 3 3 2 1 1 4 Gunslinging 1 | . . . . . . 1 . 1 . . . . Exploded 3 | . . . 2 . . . 3 3 . . . 3 Melee . | . . . . . . . . . . . . . Uniques/NPCs Destroyed . | . . . . . . . . . . . . . Combat | -11 -10 -10 -9 -9 -9 -8 -8 -8 -7 -7 -7 -7 -------- Run | Yrd Mat Min Mat Min Exi Min Mat Gar Fac Was Fac Sto Hostile Shots Fired 750 | . 67 7 124 12 . 23 122 68 48 . 17 262 Missed 195 | . 13 . 38 5 . 7 37 16 9 . 4 66 Hits 555 | . 54 7 86 7 . 16 85 52 39 . 13 196 Melee 18 | . . 3 1 . . . . . 4 . . 10 Projectile 537 | . 54 4 85 7 . 16 85 52 35 . 13 186 AOE 2 | . . . . . . . . . . . . 2 Critical Strikes 23 | . 1 . . . . . 2 5 5 . 1 9 Damage Taken 7665 | . 549 145 1004 60 . 134 1174 850 740 . 255 2754 Core 896 | . 153 34 117 9 . 6 91 33 144 . 10 299 Absorbed by Shields 423 | . . . 37 . . . . . . . 97 289 Reduced by Siege Mode 40 | . . . . . . . . . . . . 40 Redirected to Shielding 83 | . . . . . . . 83 . . . . . Regen/Repaired (Parts) 1147 | . 26 . 65 . . . 92 . . 153 135 676 Core Remaining (%) 67 | 100 . 25 . . . 67 . 77 . . . . Volleys Fired 448 | 7 99 10 82 10 . 5 72 37 25 2 15 84 Largest 3 | 2 2 2 3 3 . 3 3 3 3 2 3 3 Hottest 240 | 90 100 60 204 69 . 69 150 240 240 56 84 121 Shots Fired 1076 | 14 152 20 229 30 . 15 216 91 63 6 28 212 Gun 706 | 14 77 . 69 30 . 15 216 81 57 6 19 122 Cannon 324 | . 72 20 154 . . . . . 3 . . 75 Launcher 31 | . . . 6 . . . . 10 . . . 15 Special 15 | . 3 . . . . . . . 3 . 9 . Kinetic 590 | . 111 20 135 30 . 15 135 . . 6 19 119 Thermal 339 | 14 41 . 88 . . . 24 34 60 . . 78 Explosive 31 | . . . 6 . . . . 10 . . . 15 Electromagnetic 104 | . . . . . . . 57 47 . . . . Robot Hit Streak 45 | 3 9 3 18 9 . 3 15 27 11 6 5 45 Robot Miss Streak 8 | 3 4 2 6 2 . 5 5 8 8 . 2 4 Penetration Max . | . . . . . . . . . . . . . Secondary Targets 24 | . 2 . . 2 . 1 5 4 1 . 2 7 Max Gunslinging Chain 1 | . 1 . . 1 . 1 1 1 1 . 1 1 Shots Hit Robots 691 | 6 83 10 133 16 7 5 136 61 52 9 15 158 Core Hits 452 | 4 38 9 98 7 . 2 71 59 35 5 6 118 Critical Kills 1 | . . . . . . . . . . . . 1 Critical Parts Destroyed 6 | . 1 . . . . . . . 1 3 . 1 Critical Strikes 14 | . 5 . . . . . 3 . 1 3 . 2 Burn 4 | . 1 . . . . . 3 . . . . . Meltdown 1 | . . . . . . . . . . . . 1 Destroy 2 | . 1 . . . . . . . . . . 1 Blast 3 | . 3 . . . . . . . . . . . Smash 4 | . . . . . . . . . 1 3 . . Melee Attacks 42 | . . . . . 7 . . 10 21 4 . . Impact 35 | . . . . . . . . 10 21 4 . . Slashing . | . . . . . . . . . . . . . Piercing . | . . . . . . . . . . . . . Sneak Attacks 18 | . . . . . 7 . . . 7 4 . . Combat Hostiles . | . . . . . . . . . . . . . Follow-up Attacks . | . . . . . . . . . . . . . Damage Inflicted 19873 | 84 1176 244 3466 263 . 124 3033 2478 1712 419 295 6579 Guns 8447 | 84 542 . 643 240 . 76 2526 1222 898 144 173 1899 Cannons 4137 | . 620 204 1929 . . . . . 66 . . 1318 Explosions 5916 | . . . 820 . . . 473 1177 . . 88 3358 Melee 1102 | . . . . . . . . 79 748 275 . . Ramming 271 | . 14 40 74 23 . 48 34 . . . 34 4 Kinetic 6223 | . 878 204 1312 240 . 76 1337 . . 144 173 1859 Thermal 5499 | 84 284 . 1260 . . . 590 871 964 . 88 1358 Explosive 5110 | . . . 775 . . . 183 794 . . . 3358 Electromagnetic 1668 | . . . 45 . . . 889 734 . . . . Impact 1102 | . . . . . . . . 79 748 275 . . Slashing . | . . . . . . . . . . . . . Piercing . | . . . . . . . . . . . . . Highest Corruption 14 | . . . . . . . . 4 4 4 6 14 Average Corruption 5 | . . . . . . . . 3 2 4 4 10 Corruption Purged . | . . . . . . . . . . . . . Corruption Blocked . | . . . . . . . . . . . . . Effects 153 | . . . . . . . . 38 22 15 33 45 Message Errors 33 | . . . . . . . . 7 4 4 7 11 Matter Fused 42 | . . . . . . . . 12 6 4 11 9 Heat Flow Errors 26 | . . . . . . . . 7 5 2 3 9 Energy Discharges 10 | . . . . . . . . 3 1 . 3 3 Parts Rejected 2 | . . . . . . . . . . . . 2 Data Loss (minor) 21 | . . . . . . . . 4 3 3 4 7 Data Loss (major) 9 | . . . . . . . . 2 2 . 3 2 Misfires 6 | . . . . . . . . 3 . 2 1 . Alerts 2 | . . . . . . . . . 1 . 1 . Weapon Failures 2 | . . . . . . . . . . . . 2 Overload Shots . | . . . . . . . . . . . . . Overflow Damage 824 | . 13 9 12 . . . . 79 408 235 . 68 Projectiles 54 | . 13 9 12 . . . . . . . . 20 Explosions 88 | . . . . . . . . 40 . . . 48 Melee 682 | . . . . . . . . 39 408 235 . . Knockbacks 23 | . 10 1 5 1 . 1 . 1 2 2 . . Impact 7 | . . . . 1 . 1 . 1 2 2 . . Kinetic 15 | . 9 1 5 . . . . . . . . . Secondary 1 | . 1 . . . . . . . . . . . Self-Inflicted Damage 292 | . . . 48 . . . 134 46 . . . 64 Shots 6 | . . . 1 . . . 2 1 . . . 2 Rammed 46 | . 10 6 9 3 . 3 7 . . . 6 2 Targets Rammed 52 | . 11 7 11 3 . 4 7 . . . 7 2 Kicked . | . . . . . . . . . . . . . Crushed 6 | . 1 1 2 . . 1 . . . . 1 . Highest Temperature 443 | 120 443 . 281 89 . 89 272 225 242 189 274 219 Average Temperature 77 | 55 121 . 78 31 . 46 56 77 74 95 99 82 Received Heat Transfer 2309 | . 186 . 319 . . . 441 333 162 . 30 838 Effects 8 | . 7 . 1 . . . . . . . . . Shutdowns 1 | . 1 . . . . . . . . . . . Energy Bleed 2 | . 1 . 1 . . . . . . . . . Short Circuit 1 | . 1 . . . . . . . . . . . Damage (major) 4 | . 4 . . . . . . . . . . . Siege Activations 1 | . . . . . . . . . . . . 1 Total Turns 87 | . . . . . . . . . . . . 87 Longest Duration 87 | . . . . . . . . . . . . 87 Martial Activations . | . . . . . . . . . . . . . Shielding Activations . | . . . . . . . . . . . . . Robots Disrupted . | . . . . . . . . . . . . . Combat Hostiles . | . . . . . . . . . . . . . Robots Corrupted 4 | . . . . . . . . 1 2 1 . . Combat Hostiles . | . . . . . . . . . . . . . Parts Fried 24 | . . . . . . . 8 3 9 4 . . Impact Corruptions 15 | . . . . . . . . 1 11 3 . . Robots Melted 2 | . . . . . . . . . . . . 2 Combat Hostiles 2 | . . . . . . . . . . . . 2 Parts Melted 14 | . . . 1 . . . 2 2 7 . . 2 Heat Transferred 9395 | 223 818 . 2179 . . . 1127 1475 1974 . 50 1549 Parts Sabotaged . | . . . . . . . . . . . . . Parts Stolen . | . . . . . . . . . . . . . Parts Stripped . | . . . . . . . . . . . . . Power Chain Reactions 7 | . . . . . . . 3 4 . . . . Alert | -11 -10 -10 -9 -9 -9 -8 -8 -8 -7 -7 -7 -7 ------- Run | Yrd Mat Min Mat Min Exi Min Mat Gar Fac Was Fac Sto Maximum Alert Level 5 | . . . 2 1 . . 1 4 3 . 3 5 Low Security (%) 49 | 100 100 100 24 92 . 100 81 4 . 100 8 . Level 1 12 | . . . 19 7 . . 18 17 36 . 1 8 Level 2 21 | . . . 55 . . . . 25 53 . 24 23 Level 3 10 | . . . . . . . . 27 10 . 65 28 Level 4 4 | . . . . . . . . 25 . . . 25 Level 5 . | . . . . . . . . . . . . . High Security . | . . . . . . . . . . . . 14 Max Security . | . . . . . . . . . . . . . Peak Influence 2042 | 10 132 39 646 240 . 50 235 1529 802 198 912 2042 Initial 802 | . . 39 . 170 . . . 148 802 198 . 411 Average 341 | 1 53 1 314 58 . 1 155 790 505 50 665 1006 Influence Increases 9167 | 15 632 10 1204 180 . 55 878 1411 594 . 1738 2450 Destroy 0b10 Robot/C 4420 | . 380 . 740 140 . 40 600 600 280 . 620 1020 Destroy 0b10 Robot/NC 475 | 15 45 10 135 10 . 5 65 5 60 . 50 75 Destroy Leader 864 | . 80 . 202 20 . 10 126 20 84 . 132 190 Allied During Kill 1592 | . . . . 10 . . . 6 52 . 801 723 Successful Hack 125 | . 28 . 13 . . . 8 24 13 . 20 19 Select Force Hacks 60 | . 60 . . . . . . . . . . . Disable Machine 330 | . 15 . 30 . . . 15 15 75 . 60 120 Anti-Garrison Action 750 | . . . . . . . . 600 . . . 150 Destroy Structure 401 | . 9 . 39 . . . 49 81 30 . 40 153 Lose Combat Pursuer 150 | . 15 . 45 . . . 15 60 . . 15 . Influence Decreases 7160 | 15 531 111 767 617 . 55 649 111 1557 566 833 1348 Entered New Map 1999 | . . 62 . 267 . . . 81 727 368 . 494 Time Decay 4031 | 15 521 49 617 350 . 55 639 . 630 198 523 434 Lost Part 180 | . 10 . . . . . 10 10 30 . . 120 Lost Ally 500 | . . . . . . . . 20 20 . 160 300 Purge Threat 450 | . . . 150 . . . . . 150 . 150 . Squads Dispatched 33 | . 4 . 4 . . . . . 4 . 5 16 Investigation 6 | . 3 . . . . . . . 1 . . 2 Extermination 6 | . . . . . . . . . 3 . 2 1 Reinforcement 9 | . 1 . 3 . . . . . . . 2 3 Assault 10 | . . . 1 . . . . . . . 1 8 Garrison 2 | . . . . . . . . . . . . 2 Intercept . | . . . . . . . . . . . . . Searches Triggered . | . . . . . . . . . . . . . Construction Impeded 3 | . . . 1 . . . . . . . . 2 Haulers Reinforced . | . . . . . . . . . . . . . Active Scanning Responses . | . . . . . . . . . . . . . Cargo Convoy Interrupts . | . . . . . . . . . . . . . Stealth | -11 -10 -10 -9 -9 -9 -8 -8 -8 -7 -7 -7 -7 --------- Run | Yrd Mat Min Mat Min Exi Min Mat Gar Fac Was Fac Sto Distress Signals 17 | . 3 . 6 . . . 3 . . . 1 4 Communications Jammed 453 | . . . . . . . . . . . 6 447 Distress Signals 449 | . . . . . . . . . . . 2 447 Times Spotted 294 | . 37 7 52 6 . 3 46 23 21 . 22 77 Peak Tracking Total 13 | . 6 2 6 3 . 3 5 8 4 . 4 13 Tactical Retreats 9 | . 1 1 3 . . . 1 2 . . 1 . Traps | -11 -10 -10 -9 -9 -9 -8 -8 -8 -7 -7 -7 -7 ------- Run | Yrd Mat Min Mat Min Exi Min Mat Gar Fac Was Fac Sto Traps Triggered 12 | . . . 1 . . . . 7 1 . 3 . Indirectly . | . . . . . . . . . . . . . Trap Hack Attempts . | . . . . . . . . . . . . . Triggered . | . . . . . . . . . . . . . Disarmed . | . . . . . . . . . . . . . Reprogrammed . | . . . . . . . . . . . . . Reused . | . . . . . . . . . . . . . Traps Extracted . | . . . . . . . . . . . . . Installed 2 | . . 1 1 . . . . . . . . . Triggered . | . . . . . . . . . . . . . Most Traps Carried 1 | . . 1 1 . . . . . . . . . Machines | -11 -10 -10 -9 -9 -9 -8 -8 -8 -7 -7 -7 -7 ---------- Run | Yrd Mat Min Mat Min Exi Min Mat Gar Fac Was Fac Sto Machines Disabled 25 | . 1 . 2 . . . 1 3 5 . 4 9 Max in Single Turn 2 | . 1 . 1 . . . 1 1 1 . 2 2 Garrison Access 2 | . . . . . . . . . . . 1 1 Garrison Relay 2 | . . . . . . . . 2 . . . . Machines Repaired . | . . . . . . . . . . . . . Machines Dismantled 2 | . . . . . . . . . . . . 2 Machines Sabotaged . | . . . . . . . . . . . . . Overloaded Fab Kills . | . . . . . . . . . . . . . Hacking | -11 -10 -10 -9 -9 -9 -8 -8 -8 -7 -7 -7 -7 --------- Run | Yrd Mat Min Mat Min Exi Min Mat Gar Fac Was Fac Sto Machines Accessed 54 | . 10 1 11 . 2 . 11 3 4 . 6 6 Terminals 38 | . 7 1 8 . . . 8 3 3 . 3 5 Fabricators 2 | . . . . . . . . . 1 . 1 . Repair Stations 3 | . 1 . 1 . . . 1 . . . . . Recycling Units 2 | . 2 . . . . . . . . . . . Scanalyzers 4 | . . . 2 . . . 1 . . . 1 . Garrison Access 3 | . . . . . . . 1 . . . 1 1 Total Hacks 155 | . 38 3 29 . 2 . 30 5 18 . 19 11 Successful 82 | . 16 1 18 . 2 . 13 3 11 . 13 5 Failed 72 | . 21 2 11 . . . 17 2 7 . 6 6 Catastrophic 18 | . 1 1 4 . . . 5 1 3 . . 3 Database Lockouts 1 | . 1 . . . . . . . . . . . Manual 51 | . 17 2 12 . 1 . 9 1 4 . 3 2 Terminals 97 | . 27 3 16 . . . 19 5 9 . 8 10 Fabricators 18 | . . . . . . . . . 9 . 9 . Repair Stations 10 | . 2 . 4 . . . 4 . . . . . Recycling Units 9 | . 9 . . . . . . . . . . . Scanalyzers 16 | . . . 9 . . . 6 . . . 1 . Garrison Access 3 | . . . . . . . 1 . . . 1 1 Terminal Hacks 31 | . 6 1 3 . 2 . 4 3 4 . 4 4 Record 1 | . . . . . 1 . . . . . . . Part Schematic 1 | . . . . . . . 1 . . . . . Robot Schematic 2 | . 1 . . . . . . . 1 . . . Prototype ID Bank 1 | . 1 . . . . . . . . . . . Open Door 4 | . . . . . . . . 1 . . . 3 Branch Access Points 2 | . . . . . . . . . 1 . 1 . Emergency Access Points 2 | . 1 . . . . . . 1 . . . . Alert Level 2 | . . . 1 . . . 1 . . . . . Unreport Threat 2 | . . . 1 . . . . . 1 . . . Locate Traps 3 | . 1 . . . . . 1 . . . 1 . Hauler Manifests 4 | . 1 . . . . . 1 . . . 1 1 Registered Components 2 | . 1 . 1 . . . . . . . . . Zone Layout 3 | . . 1 . . . . . . 1 . 1 . Garrison Registry 1 | . . . . . . . . 1 . . . . Proto ID Catalog 1 | . . . . . 1 . . . . . . . Fabricator Hacks 15 | . . . . . . . . . 7 . 8 . Network Status 1 | . . . . . . . . . 1 . . . Load Schematic 7 | . . . . . . . . . 3 . 4 . Build 7 | . . . . . . . . . 3 . 4 . Repair Station Hacks 6 | . . . 2 . . . 4 . . . . . Scan Component 3 | . . . 1 . . . 2 . . . . . Repair 3 | . . . 1 . . . 2 . . . . . Recycling Unit Hacks 1 | . 1 . . . . . . . . . . . Retrieve Components 1 | . 1 . . . . . . . . . . . Scanalyzer 12 | . . . 8 . . . 4 . . . . . Insert Component 6 | . . . 4 . . . 2 . . . . . Analyze 6 | . . . 4 . . . 2 . . . . . Garrison Access Hacks 2 | . . . . . . . 1 . . . 1 . Unlock Access 1 | . . . . . . . 1 . . . . . Seal Access 1 | . . . . . . . . . . . 1 . Unauthorized Hacks 15 | . 9 . 5 . . . . . . . . 1 Terminals 11 | . 6 . 5 . . . . . . . . . Assimilate 1 | . 1 . . . . . . . . . . . Skim 10 | . 5 . 5 . . . . . . . . . Fabricators . | . . . . . . . . . . . . . Repair Stations 1 | . 1 . . . . . . . . . . . Patch 1 | . 1 . . . . . . . . . . . Recycling Units 2 | . 2 . . . . . . . . . . . Tunnel 2 | . 2 . . . . . . . . . . . Scanalyzers . | . . . . . . . . . . . . . Garrison Access 1 | . . . . . . . . . . . . 1 Reprogram 1 | . . . . . . . . . . . . 1 Data Cores Recovered 1 | . . . 1 . . . . . . . . . Used . | . . . . . . . . . . . . . Hacking Detections 45 | . 9 1 10 . . . 10 2 4 . 5 4 Full Trace Events 5 | . . 1 1 . . . 1 . 1 . . 1 Feedback Events 2 | . . . . . . . . . 2 . . . Corruption 1 | . . . . . . . . . 1 . . . Hackware Fried 1 | . . . . . . . . . 1 . . . Feedback Blocked . | . . . . . . . . . . . . . Robot Schematics Acquired 2 | . 1 . . . . . . . 1 . . . Robots Built 13 | . . . . . . . . . 6 . 7 . Authchips 7 | . . . . . . . . . 3 . 4 . Time 291 | . . . . . . . . . 132 . 159 . Total Robot Build Rating 49 | . . . . . . . . . 24 . 25 . Part Schematics Acquired 7 | . . . 4 . . . 3 . . . . . Parts Built . | . . . . . . . . . . . . . Authchips . | . . . . . . . . . . . . . Time . | . . . . . . . . . . . . . Total Part Build Rating . | . . . . . . . . . . . . . Parts Repaired 3 | . . . 1 . . . 2 . . . . . Time 96 | . . . 26 . . . 70 . . . . . Parts Recycled . | . . . . . . . . . . . . . Recycled Matter . | . . . . . . . . . . . . . Retrieved Matter . | . . . . . . . . . . . . . Retrieved Components 10 | . 10 . . . . . . . . . . . Parts Scanalyzed 6 | . . . 4 . . . 2 . . . . . Part Schematics Acquired 6 | . . . 4 . . . 2 . . . . . Parts Damaged . | . . . . . . . . . . . . . Bothacking | -11 -10 -10 -9 -9 -9 -8 -8 -8 -7 -7 -7 -7 ------------ Run | Yrd Mat Min Mat Min Exi Min Mat Gar Fac Was Fac Sto Used RIF Installer 2 | . . . . . . . . 2 . . . . Zone Cloak 1 | . . . . . . . . 1 . . . . Robots Hacked 14 | . . . . . 7 . . . 3 . 4 . Non-combat 10 | . . . . . 3 . . . 3 . 4 . Combat 4 | . . . . . 4 . . . . . . . Robot Hacks Applied 15 | . . . . . 7 . . . 3 . 5 . parse_system 9 | . . . . . 7 . . . 1 . 1 . find_chute 1 | . . . . . . . . . 1 . . . drop_inventory 3 | . . . . . . . . . 1 . 2 . purge_threat 1 | . . . . . . . . . . . 1 . formatsys_low 1 | . . . . . . . . . . . 1 . Relay Couplers Released 14 | . . . . . . . . 12 . . . 2 Machine Destruction 10 | . . . . . . . . 8 . . . 2 Programmers 4 | . . . . . . . . 4 . . . . Attached 2 | . . . . . . . . . 2 . . . Fabnet Peak Effective % . | . . . . . . . . . . . . . Robots Rewired . | . . . . . . . . . . . . . Allies Hacked 4 | . . . . . . . . . 1 . 3 . Hacks Repelled 1 | . . . . . . . . . . . 1 . Allies | -11 -10 -10 -9 -9 -9 -8 -8 -8 -7 -7 -7 -7 -------- Run | Yrd Mat Min Mat Min Exi Min Mat Gar Fac Was Fac Sto Total Allies 55 | . 1 1 . 2 . . . 1 7 20 11 12 Largest Group 22 | . 1 1 . 2 1 . . 1 6 20 22 19 Highest-Rated Group 654 | . 10 31 . 41 31 . . 31 222 561 654 519 Highest-Rated Ally 37 | . 10 31 . 31 31 . . 31 37 36 37 37 Total Orders . | . . . . . . . . . . . . . Ally Attacks 511 | . . . . 5 . . . 13 30 . 273 190 Total Damage 9169 | . . . . 66 . . . 167 1483 . 3998 3455 Kills 80 | . . . . 2 . . . 1 12 . 36 29 Allies Corrupted 4 | . . . . . . . . . . 1 1 2 Allies Melted 1 | . . . . . . . . 1 . . . . Intel | -11 -10 -10 -9 -9 -9 -8 -8 -8 -7 -7 -7 -7 ------- Run | Yrd Mat Min Mat Min Exi Min Mat Gar Fac Was Fac Sto Active Infowar (turns) 7285 | 11 1911 1150 . . . . . . 1493 732 1613 375 Terrain 551 | 11 540 . . . . . . . . . . . Structural 894 | . . 894 . . . . . . . . . . Seismic 1627 | . 1371 256 . . . . . . . . . . Jamming 4213 | . . . . . . . . . 1493 732 1613 375 Robot Analysis Total . | . . . . . . . . . . . . . Derelict Logs Recovered 4 | . . 2 . 2 . . . . . . . . Drone Launches . | . . . . . . . . . . . . . Drone Recoveries . | . . . . . . . . . . . . . Exploration | -11 -10 -10 -9 -9 -9 -8 -8 -8 -7 -7 -7 -7 ------------- Run | Yrd Mat Min Mat Min Exi Min Mat Gar Fac Was Fac Sto Turns Passed 23463 | 140 1911 1307 4006 1324 1786 1444 3165 2501 2196 816 1613 1254 Spaces Moved 9039 | 66 892 696 1649 531 675 588 1005 943 753 322 586 333 Core 5 | 5 . . . . . . . . . . . . Treads 8981 | 61 839 696 1649 531 675 588 1005 943 753 322 586 333 Legs . | . . . . . . . . . . . . . Wheels 53 | . 53 . . . . . . . . . . . Hover . | . . . . . . . . . . . . . Flight . | . . . . . . . . . . . . . Fastest Speed 50 | 50 110 160 160 240 240 240 240 240 240 240 240 240 Average Speed 217 | 151 166 160 191 240 240 240 240 240 240 240 242 240 Slowest Speed 245 | 160 240 160 240 240 240 240 240 240 240 240 245 240 Overloaded Moves . | . . . . . . . . . . . . . Propulsion Burnouts . | . . . . . . . . . . . . . Robots Hopped . | . . . . . . . . . . . . . Potential Cave-ins . | . . . . . . . . . . . . . Cave-ins Triggered . | . . . . . . . . . . . . . Exploration Rate (%) 71 | 5 96 98 98 96 91 96 72 77 13 96 16 70 Regions Visited 12 Branch Regions 5 Pre-discovered Areas 11 | . 5 . 4 1 1 . . . . . . . Known Exits Taken 7 | . 1 1 1 . 1 1 1 . . . 1 . Unknown Exits Taken 2 | 1 . . . 1 . . . . . . . . Scrap Searched 5 | . . 1 . 3 . 1 . . . . . . Spaces Dug 38 | . 3 . 11 . . . . 1 10 . . 13 Terrain Destroyed 323 | . 3 . 35 . . . 57 43 10 . 39 136 Melee 11 | . . . . . . . . 1 10 . . . Projectile 20 | . 3 . . . . . . . . . . 17 AOE 292 | . . . 35 . . . 57 42 . . 39 119 Terrain Rammed . | . . . . . . . . . . . . . Walls Destroyed . | . . . . . . . . . . . . . Machines Disabled . | . . . . . . . . . . . . . Actions | -11 -10 -10 -9 -9 -9 -8 -8 -8 -7 -7 -7 -7 --------- Run | Yrd Mat Min Mat Min Exi Min Mat Gar Fac Was Fac Sto Total 11876 | 88 1159 869 2321 561 844 605 1606 1087 1054 358 745 579 Wait 1659 | . 99 138 459 3 144 2 419 35 191 . 101 68 Move 9028 | 65 891 695 1648 530 674 587 1004 942 753 321 585 333 Hop . | . . . . . . . . . . . . . Pick Up 156 | 8 21 7 31 5 6 1 21 13 18 4 8 13 Fast Attach 76 | 7 4 . 12 . . . 20 2 6 8 3 14 Attach 35 | . 1 2 3 . . . 3 3 9 . 5 9 Detach 1 | . . . . . . . 1 . . . . . Swap 138 | 1 13 1 29 3 1 3 14 18 15 4 17 19 Drop 208 | . 20 8 45 7 12 3 45 13 16 14 4 21 Fire 448 | 7 99 10 82 10 . 5 72 37 25 2 15 84 Melee 42 | . . . . . 7 . . 10 21 4 . . Ram . | . . . . . . . . . . . . . Kick . | . . . . . . . . . . . . . Crush 52 | . 11 7 11 3 . 4 7 . . . 7 2 Escape Stasis 14 | . . . . . . . . 14 . . . . Rewire 1 | . . . . . . . . . . 1 . . Trap 2 | . . 1 1 . . . . . . . . . Miscellaneous 16 | . . . . . . . . . . . . 16 Route ------- -11/Scrapyard -10/Materials (discovered 5 exits: *Mat x3 / *Min / Sub) -10/Mines (discovered 3 exits: *Mat x2 / *Sub) -9/Materials (discovered 4 exits: *Mat x3 / *Min) -9/Mines (discovered 2 exits: *Mat / *Exi) -9/Exiles (discovered 2 exits: *Min x2) -8/Mines (discovered 2 exits: *Mat x2) -8/Materials (discovered 4 exits: *Fac x3 / Gar) -8/Garrison (discovered 3 exits: *Fac x3) -7/Factory (discovered 4 exits: Sto x2 / Low x2) -7/Waste -7/Factory (discovered 3 exits: *Sto / Low x2) -7/Storage History --------- Turn | Location | Event 48 | -11/Scrapyard | Discovered new exit (range 16) 141 | -11/Scrapyard | Entered Materials 170 | -10/Materials | Central database locked down 310 | -10/Materials | Build established: Mutant 467 | -10/Materials | Discovered new exit (range 9) 485 | -10/Materials | Discovered new exit (range 15) 617 | -10/Materials | Core integrity fell below 50% 1198 | -10/Materials | Discovered new exit (range 14) 1520 | -10/Materials | Discovered new exit (range 16) 1645 | -10/Materials | Learned Storage non-interactive machine intel 1670 | -10/Materials | Identified exit to Subcaves 1670 | -10/Materials | Identified exit to Mines 1670 | -10/Materials | Identified exit to Materials 1685 | -10/Materials | Learned location of Recycling (-7) 1694 | -10/Materials | Learned Storage stockpile data 1695 | -10/Materials | Learned location of Mines (-10) 1711 | -10/Materials | Learned Storage garrison access intel 1733 | -10/Materials | Learned Storage terminal intel 2052 | -10/Materials | Entered Mines 2067 | -10/Mines | Learned Materials terminal intel 2305 | -10/Mines | A weapon hastily lodged in a ceiling crevice suddenly fell to the ground 2376 | -10/Mines | Assembled infested the area 2758 | -10/Mines | Received a Rocket Launcher from a helpful Derelict 3021 | -10/Mines | Received a Mining Laser from a helpful Derelict 3163 | -10/Mines | Learned Materials terminal intel 3179 | -10/Mines | Found a hidden stash of uninstalled traps 3341 | -10/Mines | Discovered exit to Subcaves (range 6) 3359 | -10/Mines | Entered Materials 3359 | -9/Materials | Evolved 2 slots: Propulsion x1, Weapon x1 3360 | -9/Materials | Identified exit to Materials 3360 | -9/Materials | Identified exit to Mines 3361 | -9/Materials | Loaded intel: 11 terminal locations 3577 | -9/Materials | Repaired Lgt. Cannon 3879 | -9/Materials | Build established: Gunner 3985 | -9/Materials | Discovered exit to Materials (range 4) 5003 | -9/Materials | Build established: Scavenger-Gunner 5211 | -9/Materials | Learned location of 1 exit from Materials 5276 | -9/Materials | Learned location of Zion (-6) 5331 | -9/Materials | Learned location of Mines (-9) 5359 | -9/Materials | First assault squad dispatched 5374 | -9/Materials | Learned location of 3 exits from Materials 5443 | -9/Materials | Destroyed 7 combat bots 5448 | -9/Materials | Loaded intel: 12 trap records 5503 | -9/Materials | Learned location of Mines (-8) 5830 | -9/Materials | Build established: Gunner 6746 | -9/Materials | Build established: Tank 7365 | -9/Materials | Entered Mines 7889 | -9/Mines | Discovered exit to Materials (range 10) 8287 | -9/Mines | Learned location of 1 exit from Proximity Caves 8337 | -9/Mines | Joined a pair of Derelicts in attacking an 0b10 outpost 8677 | -9/Mines | Deemed a non-threat by the Exiles lab entrance 8680 | -9/Mines | Discovered new exit (range 5) 8689 | -9/Mines | Entered Exiles 8689 | -9/Exiles | Accompanied by 1 ally 8690 | -9/Exiles | Identified exit to Mines 8719 | -9/Exiles | Led the pair of lost Derelicts to a safe place 8749 | -9/Exiles | Met 8R-AWN 8790 | -9/Exiles | Met EX-HEX 8893 | -9/Exiles | Met EX-DEC 9195 | -9/Exiles | Build established: Scavenger-Mutant 9236 | -9/Exiles | Visited The Gauntlet 9797 | -9/Exiles | Met EX-BIN 9961 | -9/Exiles | Aligned with FarCom system 9964 | -9/Exiles | Given EX-Vault access code 10026 | -9/Exiles | Opened EX-Vault 10050 | -9/Exiles | Found YOLO Cannon 10062 | -9/Exiles | Found PSU Rigger 10074 | -9/Exiles | Found Army-in-a-Box 10135 | -9/Exiles | Exiles lab attacked by MAIN.C 10305 | -9/Exiles | Discovered exit to Mines (range 10) 10475 | -9/Exiles | Stole three prototypes: Army-in-a-Box, PSU Rigger, YOLO Cannon 10475 | -9/Exiles | Entered Mines 10762 | -8/Mines | Build established: Scavenger-Skirmisher 11162 | -8/Mines | Discovered exit to Materials (range 14) 11239 | -8/Mines | Discovered exit to Materials (range 6) 11757 | -8/Mines | Found a Scrap Suit stashed away for nefarious purposes 11764 | -8/Mines | Found Scrap Suit 11919 | -8/Mines | Entered Materials 11919 | -8/Materials | Evolved 2 slots: Utility x2 11920 | -8/Materials | Identified exit to Factory 11921 | -8/Materials | Loaded intel: 11 terminal locations 12321 | -8/Materials | Build established: Scavenger-Tank 12779 | -8/Materials | Build established: Scavenger-Skirmisher 13127 | -8/Materials | Repaired Med. Armor Plating 13166 | -8/Materials | Repaired Particle Charger 13356 | -8/Materials | Build established: Skirmisher 15076 | -8/Materials | Identified exit to Garrison 15084 | -8/Materials | Entered Garrison 15108 | -8/Garrison | Triggered checkpoint 15161 | -8/Garrison | Installed Relay Interface Framework 15198 | -8/Garrison | Garrison Relay disabled 15277 | -8/Garrison | Expanded RIF knowledge: Zone Cloak 15465 | -8/Garrison | Rescued a captive Derelict 15544 | -8/Garrison | Triggered checkpoint 15589 | -8/Garrison | Triggered checkpoint 15605 | -8/Garrison | Triggered checkpoint 15778 | -8/Garrison | Destroyed 7 combat bots 16570 | -8/Garrison | Triggered checkpoint 16728 | -8/Garrison | Discovered exit to Factory (range 15) 16929 | -8/Garrison | Build established: Mutant 16953 | -8/Garrison | Triggered checkpoint 17169 | -8/Garrison | Discovered exit to Factory (range 9) 17193 | -8/Garrison | Discovered exit to Factory (range 52) 17193 | -8/Garrison | Discovered exit to Factory (range 78) 17193 | -8/Garrison | Discovered exit to Factory (range 6) 17245 | -8/Garrison | Build established: Skirmisher 17585 | -8/Garrison | Entered Factory 17585 | -7/Factory | Evolved 2 slots: Utility x2 17587 | -7/Factory | FarCom data flow suspended 17890 | -7/Factory | Build established: Gunner 18683 | -7/Factory | Identified exit to Storage 18683 | -7/Factory | Identified exit to Lower Caves 18938 | -7/Factory | Fabricated P-60 Hacker (x2) 18983 | -7/Factory | Fabricated P-60 Hacker (x2) 19028 | -7/Factory | Fabricated P-60 Hacker (x2) 19028 | -7/Factory | Hacking Suite fried by hacking feedback 19234 | -7/Factory | Lost 4 allies 19687 | -7/Factory | Hacker 4a assimilated hostile G-47 Trooper 19697 | -7/Factory | Build established: Mutant 19781 | -7/Factory | Sucked down chute 19781 | -7/Factory | Entered Waste 19782 | -7/Waste | Joined by Warlord forces that had cleared the area 20092 | -7/Waste | Build established: Tank 20495 | -7/Waste | Discovered new exit (range 13) 20597 | -7/Waste | Entered Factory 20597 | -7/Factory | Accompanied by 17 allies 21199 | -7/Factory | Fabricated P-60 Hacker? 21358 | -7/Factory | Fabricated P-60 Hacker? 21421 | -7/Factory | Fabricated M-13 Machinist (x1) 21466 | -7/Factory | Fabricated P-60 Hacker (x2) 21680 | -7/Factory | Build established: Commander-Tank 21753 | -7/Factory | Hacker 4l assimilated hostile G-47 Trooper 21797 | -7/Factory | First assault squad dispatched 21885 | -7/Factory | Hacker 4j assimilated hostile G-47 Trooper 21904 | -7/Factory | Hacker 4g assimilated hostile G-47 Trooper 21931 | -7/Factory | Lost 5 allies 22210 | -7/Factory | Entered Storage 22210 | -7/Storage | Accompanied by 19 allies 22212 | -7/Storage | Loaded intel: 27 non-interactive machine locations 22213 | -7/Storage | Loaded intel: 16 terminal locations 22214 | -7/Storage | Loaded intel: 1 garrison access location 22358 | -7/Storage | Garrison activated, responded to threat 22610 | -7/Storage | First assault squad dispatched 22648 | -7/Storage | System corruption reached 10% 22674 | -7/Storage | Destroyed 7 combat bots 22678 | -7/Storage | Lost 3 parts (3u) 22862 | -7/Storage | Lost 6 allies 23134 | -7/Storage | Lost 4 allies 23180 | -7/Storage | P-60 Hacker assimilated allied AR-W6M(m) 23183 | -7/Storage | Build established: Scavenger-Tank 23273 | -7/Storage | Core integrity fell below 50% 23282 | -7/Storage | High security lockdown imminent 23362 | -7/Storage | High security lockdown engaged 23372 | -7/Storage | Lost 4 allies 23421 | -7/Storage | Assisted by bots powering up and referring to "LRC-V3" 23464 | -7/Storage | Self-destructed Last Messages --------------- 23455_ Med. Treads destroyed. 23455_ Imp. Cooling System destroyed. 23457_ L-41 Fighter destroyed. 23457_ Critical hit (Burn: +37). 23459_ The unstable cave ceiling collapses. 23459_ Hvy. Treads destroyed. 23461_ C-30 ARC bursts open, deploying its payload. 23461_ H-55 Commando unfolds itself. 23461_ Y-54 Guardian suffers critical hit (Burn). 23461_ G-50 Soldier destroyed. 23462_ Y-54 Guardian heat short circuits Lgt. Treads. 23462_ Antimatter Reactor destroyed. 23462_ Imp. Heat Sink destroyed. 23462_ Y-54 Guardian critical meltdown. 23462_ Slug penetrates Trooper 4e. 23462_ Trooper 4h suffers critical hit (Destroy). 23462_ Trooper 4h destroyed. 23462_ Trooper 4e destroyed. 23462_ Slug penetrates Trooper 4l. 23462_ Trooper 4l destroyed. Map ----- +----------------------------------------------------+ | ????????????????????????????????????????? | | ????????????????????????????????????????? | | ????????????????????????????????????????? | | ????????????????????????????????????????? | | ????????????????????????????????????????# | | ????????????????????????????????????????# | | ??????????????????????"?"???????????????# | | ?????????????????????T??????????????????# | | ????????????????????????????????????????# | | ????????????????????????????????????????# | | ????????????????????????????????????????# | | ????????????????????? #???????????###### | | ?????????????""?????? ####??####??# = | | ????????????#"R"???## # ? #??# | | ??????????###" "### # # """ ##?# | | ??????????# # """ ""## ] | | ??????????# """^ T"## | | ??????????# | ^ ""?# | | ?????????## %=% [ """ ] ##?# ! | | ?????????# !*%# %= """ T#?# | | | ??????????# " % % = % ^""" #??# | | ??????????# "" * #### | | ??????????# "" g % # ### # | | ????????????# %g = ! % " | | ??????????"#### =%=! # [! % # | | ??????????" @ [g%%[##! [ =% | | ??????????" !%=g%=!%hi[m* % % | | ??????????"#T####+######*h%[ % | | ???????????#??## ##??## # # /# | | ??????????????# T#???# # | | ??????????????# #???# # | | ??????????????# #???##" ""# ### | | ??????????????#######????#"R""###?# | | ?????????????????????????#""" #???# | | ?????????????????????????######???# | | ??????????????????????????????????####### | | | | | | | | | | | | | | | | | | | | | | | | | | | | | +----------------------------------------------------+ Best States ------------- Heat Dissipation 108 Coolant Potential 65 Energy Generation 21 Energy Capacity 465 Matter Stores 300 Matter Capacity 300 Sight Range 16 Terrain Scan Range 16 Terrain Scan Density 10 Jamming Range 12 Armor Coverage 600 Core Shielding 20 Weapon Shielding 66 Evasion (%) 40 Melee Accuracy 6 Core Analysis 6 Recoil Reduction 3 Particle Charging 15 Offensive Hacking 14 Relay Coupler Types 1 Relay Coupler Value 28 Authchip Count 7 Item Schematics ----------------- Plasma Flamer | -9/Materials | Scanalyzed Imp. Flight Unit | -9/Materials | Scanalyzed Mni. Grenade Launcher | -9/Materials | Scanalyzed Hacking Suite | -9/Materials | Scanalyzed Heat Sink | -8/Materials | Hacked Enh. Autogun | -8/Materials | Scanalyzed Gatling Laser | -8/Materials | Scanalyzed Robot Schematics ------------------ M-13 Machinist | -10/Materials | Hacked P-60 Hacker | -7/Factory | Hacked Fabricated ------------ P-60 Hacker | x2 | -7/Factory | Authchip P-60 Hacker | x2 | -7/Factory | Authchip P-60 Hacker | x2 | -7/Factory | Authchip P-60 Hacker | x2 | -7/Factory | Authchip P-60 Hacker | x2 | -7/Factory | Authchip M-13 Machinist | x1 | -7/Factory | Authchip P-60 Hacker | x2 | -7/Factory | Authchip Repaired ---------- Lgt. Cannon | 45% | -9/Materials Med. Armor Plating | 34% | -8/Materials Particle Charger | 48% | -8/Materials Alien Tech Used ----------------- None Achievements -------------- War Machine Challenges ------------ None Game ------ Seed PartitionSeismicPenetrator Manual? 0 Play Time 02:07:01 Cumulative 840.6 hours Start 2025.05.29 @ 02:54:54 End 2025.05.30 @ 01:19:09 Sessions 2 Manual Loads 0 Difficulty Rogue Special Mode None Game No. 468 Rogue 468 Adventurer 0 Explorer 0 Win Type - Total 22 Types 10/3/3/0/1/1/2/2/0/0 Lore% 79 Gallery% 84 Achievement% 83 Wizard Run 0 Options --------- Layout 0 ASCII 0 Keyboard 0 Movement Numpad Keybinds 0 Fullscreen 2 Font 24/Smallcaps Map View 76x50 Zoom Use 0% Tactical HUD 1 Map Filters NONE Filters NONE Steam 1 RUN: 45cb7ede-d0dc-44ad-ab8d-02f5932a99c9